[Event "Susha Chess Blitz 2022"]
[Site "Shusha"]
[Date "2022.09.24"]
[Round "10"]
[White "Wang, Hao"]
[Black "Mamedov, Rauf"]
[Result "1-0"]
[ECO "B07"]
[WhiteElo "2722"]
[BlackElo "2646"]
[Annotator "TA"]
[PlyCount "97"]
[EventDate "2022.09.24"]
[EventType "tourn"]
[EventCountry "AZE"]
[SourceTitle "playchess.com"]
[Source "ChessBase"]
[SourceQuality "1"]
[TimeControl "180+2"]

{[%evp 16,97,52,23,31,-13,-14,-10,0,0,0,0,0,0,0,0,0,-7,0,-18,-31,-131,-109,-158,-173,-163,-155,-147,-148,-153,-140,-156,-154,-152,-132,-132,-130,-134,-135,-127,-127,-128,-128,-129,-129,-130,-137,-127,-88,-98,-88,-91,-85,-88,-88,-88,-70,-73,-89,-102,-28,-36,-28,-33,0,-95,59,52,260,276,261,231,235,231,620,154,6219,6195,5406,5377,29994,29995,29998,29999]} 1. e4 {[%emt 0:00:01]} d6 {[%emt 0:00:01]} 2. d4 {[%emt 0:00:02]} Nf6 {[%emt 0:00:01]} 3. Nc3 {[%emt 0:00:01]} e5 {[%emt 0:00:00]} 4. Nf3 {[%emt 0:00:02]} exd4 {[%emt 0:00:01]} 5. Nxd4 {[%emt 0:00:01]} g6 {[%emt 0:00:01]} 6. f3 {[%emt 0:00:06]} Bg7 {[%emt 0:00:02]} 7. Be3 {[%emt 0:00:04]} O-O {[%emt 0:00:02]} 8. Qd2 {[%emt 0:00:01]} d5 {[%emt 0:00:02] The main line 8...d5 scores better than 8...Nc6.} 9. O-O-O {[%emt 0:00:11]} (9. e5 $5 {[%cal Re5f6]}) 9... dxe4 {[%emt 0:00:44] C41: Philidor Defence.} 10. Nxe4 $5 {[%emt 0:00:04][%mdl 4] An interesting side line.} Nxe4 {[%emt 0:00:07]} 11. fxe4 {[%emt 0:00:02] [#]} Qe7 $146 {[%emt 0:00:05] The position is equal.} ({Predecessor:} 11... Nd7 12. Bh6 Bxh6 13. Qxh6 Qe7 14. Nf3 Ne5 15. Qf4 Ng4 16. Rd2 Be6 17. h3 Nf6 {½-½ (48) Petkov,M (2426)-Jianu,V (2527) Tornelo INT 2021}) 12. Bh6 {[%emt 0:00:24]} Bxh6 {[%emt 0:00:21]} 13. Qxh6 {[%emt 0:00:02]} Bg4 {[%emt 0:00:02]} 14. Nf3 {[%emt 0:00:13] Black must now prevent Ng5.} Nc6 {[%emt 0:00:08][%cal Bb8c6,Bc6d4,Bd4f3][%mdl 32]} (14... Qxe4 $2 15. Bd3 Qe7 16. Ng5 Qxg5+ 17. Qxg5 $18) 15. Be2 {[%emt 0:00:27][%cal Of3g5]} Bxf3 {[%emt 0:00:17]} (15... Qxe4 $2 16. Ng5 $1 Qf4+ 17. Rd2 $18) 16. gxf3 {[%emt 0:00:02]} Rad8 {[%emt 0:00:02]} 17. h4 {[%emt 0:00:20]} Nd4 {[%emt 0:00:14]} 18. Bd3 {[%emt 0:00:16]} ({Better is} 18. Rde1 $15) 18... Nxf3 $17 {[%emt 0:00:07]} 19. Kb1 {[%emt 0:00:01]} (19. Rdf1 $142 Ne5 20. h5) 19... Ne5 {[%emt 0:00:03]} 20. Qe3 {[%emt 0:00:09]} b6 {[%emt 0:00:11]} 21. h5 {[%emt 0:00:02]} g5 {[%emt 0:00:04]} 22. h6 {[%emt 0:00:01]} Rd6 {[%emt 0:00:04]} 23. Rdg1 {[%emt 0:00:03]} Rg6 {[%emt 0:00:04][%cal Bd6g6,Bg6g8,Bg8d8][%mdl 32]} 24. Be2 {[%emt 0:00:03]} Kh8 {[%emt 0:00:05]} 25. Bh5 {[%emt 0:00:07]} Rgg8 {[%emt 0:00:10]} ({Weaker is} 25... Rxh6 26. Rxg5 Rd6 27. Rhg1 $11) 26. Bg4 {[%emt 0:00:10]} f6 {[%emt 0:00:04]} 27. Bf5 {[%emt 0:00:02]} Rd8 {[%emt 0:00:02]} 28. a3 {[%emt 0:00:05]} Rd6 {[%emt 0:00:05]} 29. Rd1 {[%emt 0:00:06]} Rgd8 {[%emt 0:00:02]} 30. Rxd6 {[%emt 0:00:02]} Qxd6 {[%emt 0:00:01]} ({But not} 30... cxd6 $6 31. Qd4 $11) 31. Qc3 {[%emt 0:00:02]} c5 {[%emt 0:00:05][%cal Bc7c5,Bc5c4][%mdl 32]} 32. Qb3 {[%emt 0:00:05]} Qe7 {[%emt 0:00:09]} 33. Rg1 {[%emt 0:00:06]} c4 {[%emt 0:00:06]} 34. Qc3 {[%emt 0:00:05]} Qc5 {[%emt 0:00:02]} 35. Rf1 {[%emt 0:00:05]} Qd4 {[%emt 0:00:05]} 36. Qb4 {[%emt 0:00:01] Qe7 would kill now.} Qd6 {[%emt 0:00:02] Prevents Qe7.} 37. Qc3 {[%emt 0:00:06]} b5 {[%emt 0:00:03]} (37... Qd2 $17 {aiming for ...Qxc3.} 38. Qxd2 Rxd2) 38. Qa5 $11 {[%emt 0:00:03][%csl LRa7,LRb5]} Qb6 {[%emt 0:00:01]} 39. Qb4 {[%emt 0:00:02]} Nc6 {[%emt 0:00:13] Against Qe7} 40. Qe1 {[%emt 0:00:12] [#]} (40. Qc3 $11 Ne5 41. Qb4) 40... Qd4 $2 {[%emt 0:00:04]} (40... Rd6 $1 $17) 41. Be6 $14 {[%emt 0:00:01]} Qe5 $2 {[%emt 0:00:02]} (41... c3 $14) 42. Bd5 $18 {[%emt 0:00:02]} Ne7 {[%emt 0:00:01]} 43. Qa5 {[%emt 0:00:02][%csl LRa7,LRb5,LRd8]} Rf8 {[%emt 0:00:07]} (43... Qb8 44. Rxf6 b4 45. axb4 $18) 44. Qxa7 {[%emt 0:00:03]} ({Stronger than} 44. Qxb5 Rb8 45. Rxf6 Ng6 $11) 44... g4 $2 {[%emt 0:00:02] [#]} (44... f5 45. Qd7 f4) 45. Rg1 $2 $40 {[%emt 0:00:04][%mdl 128] White has strong attack.} (45. Rf5 $1 $18 {[%mdl 512] is more deadly.} Qd6 46. e5 Qxd5 47. Qxe7) 45... g3 $2 {[%emt 0:00:03] [#]} (45... f5 $16) 46. Rxg3 $3 {[%emt 0:00:01][%cal Bg1g3,Bg3g7,Bg7h7][%mdl 544] Threatening mate with Rg7.} f5 {[%emt 0:00:11]} 47. Rg7 {[%emt 0:00:02]} Re8 {[%emt 0:00:01]} 48. Qd7 {[%emt 0:00:02][%csl LRb5,LRe8]} Nxd5 {[%emt 0:00:03]} 49. Rxh7+ {[%emt 0:00:02] White used his chance.  Weighted Error Value: White=0.26 (precise) /Black=0.40} 1-0

[Event "Susha Chess Blitz 2022"]
[Site "Shusha"]
[Date "2022.09.24"]
[Round "10"]
[White "Maghsoodloo, Parham"]
[Black "Guseinov, Gadir"]
[Result "1-0"]
[ECO "E81"]
[WhiteElo "2721"]
[BlackElo "2661"]
[Annotator "TA"]
[PlyCount "71"]
[EventDate "2022.09.24"]
[EventType "tourn"]
[EventCountry "AZE"]
[SourceTitle "playchess.com"]
[Source "ChessBase"]
[SourceQuality "1"]
[TimeControl "180+2"]

{[%evp 12,71,19,27,25,0,46,49,77,39,55,39,43,5,5,0,8,0,19,10,14,18,19,1,72,76,84,75,79,16,26,16,21,14,32,25,25,37,35,53,37,1,205,0,110,117,115,115,115,115,170,172,239,230,654,646,646,644,629,629,690,629]} 1. d4 {[%emt 0:00:01]} Nf6 {[%emt 0:00:01]} 2. c4 {[%emt 0:00:01]} g6 {[%emt 0:00:01]} 3. Nc3 {[%emt 0:00:01]} Bg7 {[%emt 0:00:00]} 4. e4 {[%emt 0:00:01]} d6 {[%emt 0:00:01]} 5. f3 {[%emt 0:00:01]} O-O {[%emt 0:00:01]} 6. Be3 {[%emt 0:00:01]} a6 {[%emt 0:00:01]} 7. Nge2 {[%emt 0:00:19]} b5 {[%emt 0:00:14] E81: King's Indian: Sämisch: 6th move deviations (including 6 Be3 c6).} 8. Ng3 $5 {[%emt 0:00:05][%mdl 4] [#] A promising side line.} bxc4 $146 {[%emt 0:00:29]} (8... b4 $11 {is superior.} 9. Nd5 Nc6) ({Predecessor:} 8... h5 9. Be2 h4 10. Nf1 h3 11. g4 bxc4 12. Bxc4 e6 13. g5 Nh7 14. Qd2 Nc6 15. Ng3 {1-0 (30) Tang,A (2538)-Khusnutdinov,R (2484) Chess.com INT 2021}) 9. Bxc4 $14 {[%emt 0:00:02]} a5 {[%emt 0:00:18] White is slightly better.} 10. O-O {[%emt 0:00:03]} Ba6 {[%emt 0:00:00]} 11. Bxa6 Nxa6 12. Na4 {[%emt 0:00:27]} Nd7 {[%emt 0:00:06]} 13. Rc1 {[%emt 0:00:04]} c5 {[%emt 0:00:06]} 14. Ne2 {[%emt 0:00:03][%cal Bg3e2,Be2d4,Bd4c6,Bc6a5,Ba5c4][%mdl 32]} cxd4 {[%emt 0:00:09]} 15. Nxd4 {[%emt 0:00:01]} Ndc5 {[%emt 0:00:12]} 16. Nc3 {[%emt 0:00:15]} Qd7 {[%emt 0:00:04] Inhibits Nc6.} 17. Nd5 {[%emt 0:00:09] Strongly threatening Nb6.} Qb7 {[%emt 0:00:01] [#] Prevents Nb6.} (17... Rae8 $11) 18. Nc6 $1 $16 {[%emt 0:00:16]} Rfe8 {[%emt 0:00:12]} (18... Rae8 19. Nxa5) 19. Nxa5 {[%emt 0:00:05] White is much more active.} Qxb2 {[%emt 0:00:04]} 20. Rf2 {[%emt 0:00:13]} (20. Rb1 $16 Qa3 21. Nc4 (21. Nc6 e6 $11)) 20... Qb5 {[%emt 0:00:10]} 21. Nc4 {[%emt 0:00:05]} Rab8 {[%emt 0:00:13] Against Ndb6} 22. Rd2 {[%emt 0:00:08]} Na4 {[%emt 0:00:25]} 23. h3 {[%emt 0:00:17]} Nc3 {[%emt 0:00:34]} 24. Nxc3 {[%emt 0:00:24]} Qxc4 {[%emt 0:00:00]} 25. Nd5 $36 {[%emt 0:00:02][%mdl 2048] Black is under pressure.} Qb5 {[%emt 0:00:01]} 26. a4 {[%cal Ba2a4,Ba4a5,Ba5a6,Ba6a7][%mdl 32]} (26. Bg5 $5 {[%cal Rg5e7]}) 26... Qb3 {[#]} (26... Qa5 $11) 27. Rc6 $2 {[%emt 0:00:32]} (27. Nxe7+ $1 $18 {[%mdl 512]} Kh8 28. Nd5) 27... Qxd1+ {[%emt 0:00:08]} (27... e6 $11 {keeps the balance.} 28. Ne7+ (28. Rxa6 exd5 29. Qxb3 Rxb3 $11) 28... Kf8) 28. Rxd1 {[%emt 0:00:01]} Nb4 {[%emt 0:00:03]} 29. Nxb4 Rxb4 30. a5 {[%emt 0:00:03]} Ra4 {[%emt 0:00:07]} (30... Ra8 $16) 31. a6 $18 {[%emt 0:00:03]} Ra8 {[%emt 0:00:09] [#]} (31... Ra3 $142) 32. Rdc1 $1 {[%emt 0:00:01] Threatens to win with Rc8+.} ({Don't take} 32. a7 $6 Be5 33. Rdc1 R8xa7 $16) 32... f5 $2 (32... Bf8) 33. Rc8+ {[%emt 0:00:02] White is clearly winning.} ({Less strong is} 33. a7 Kf7 $16) 33... Rxc8 {[%emt 0:00:07]} 34. Rxc8+ {[%emt 0:00:01]} Kf7 {[%emt 0:00:03]} 35. a7 {[%emt 0:00:01]} f4 {[%emt 0:00:01]} 36. Bb6 {[%emt 0:00:02] Weighted Error Value: White=0.18 (very precise) /Black=0.46} 1-0

[Event "Susha Chess Blitz 2022"]
[Site "Shusha"]
[Date "2022.09.24"]
[Round "10"]
[White "Vidit, Santosh Gujrathi"]
[Black "Durarbayli, Vasif"]
[Result "0-1"]
[ECO "A15"]
[WhiteElo "2710"]
[BlackElo "2628"]
[Annotator "TA"]
[PlyCount "108"]
[EventDate "2022.09.24"]
[EventType "tourn"]
[EventCountry "AZE"]
[SourceTitle "playchess.com"]
[Source "ChessBase"]
[SourceQuality "1"]
[TimeControl "180+2"]

{[%evp 9,108,0,9,-39,23,27,13,-13,-20,-30,38,52,45,0,0,-33,-34,-41,-46,-21,-25,-42,14,0,16,0,0,0,0,0,0,-7,-6,-15,0,0,0,0,0,-17,-16,-48,-50,-50,42,-72,-73,-206,-154,-140,-62,-67,0,0,0,-44,0,0,0,-56,0,0,0,-85,-60,-87,-6,-14,-7,-7,-8,-83,-81,-79,-81,-60,0,-93,0,-95,-92,-89,-40,-77,-103,-135,-145,-219,-208,-6379,-6327,-6326,-5310,-2600,-2209,-29976,-29975,-29979,-29979,-29979,-29980]} 1. c4 {[%emt 0:00:01]} Nf6 {[%emt 0:00:01]} 2. g3 {[%emt 0:00:03]} c6 {[%emt 0:00:08]} 3. Bg2 {[%emt 0:00:02]} d5 {[%emt 0:00:01]} 4. Nf3 {[%emt 0:00:05]} dxc4 {[%emt 0:00:06]} 5. O-O {[%emt 0:00:07]} Nbd7 {[%emt 0:00:01]} 6. a4 {[%emt 0:00:06] A11: English Opening: 1...c6.} (6. Qc2 $11 {feels stronger.}) 6... Nc5 {[%emt 0:00:13]} (6... e5 $15) 7. Na3 $11 {[%emt 0:00:11]} Be6 {[%emt 0:00:04]} 8. Qc2 {[%emt 0:00:03] The position is equal.} Nb3 {[%emt 0:00:27]} 9. Rb1 {[%emt 0:00:01]} Nd4 {[%emt 0:00:03]} (9... Qd5 $11) 10. Nxd4 $14 {[%emt 0:00:03]} Qxd4 {[%emt 0:00:02] [#]} 11. a5 $146 {[%emt 0:00:38][%cal Oa5a6]} (11. Rd1 $5 {[%cal Rd2d3]}) ({Predecessor:} 11. Rd1 g6 12. d3 Bg7 13. Nxc4 O-O 14. b3 Rfd8 15. Bb2 Qd7 16. b4 Bd5 17. e4 {1-0 (42) Sidorika,V (2355)-Nguyen,N (2641) Chess.com INT 2020}) 11... a6 {[%emt 0:00:24]} 12. Rd1 {[%emt 0:00:40]} Ng4 $36 {[%emt 0:00:27][%mdl 2048] Black fights for an advantage.} 13. e3 {[%emt 0:00:02]} Qd3 {[%emt 0:00:01]} 14. Qxd3 {[%emt 0:00:11]} cxd3 {[%emt 0:00:01]} 15. b4 {[%emt 0:00:09]} O-O-O {[%emt 0:00:12]} (15... h5 $15) 16. Bb2 {[%emt 0:00:03][%mdl 1024] White has compensation.} Kb8 {[%emt 0:00:14]} 17. Rdc1 {[%emt 0:00:04] aiming for h3.} Ba2 {[%emt 0:00:10]} 18. Ra1 {[%emt 0:00:01]} Bd5 {[%emt 0:00:02]} 19. f3 {[%emt 0:00:07]} Nf6 {[%emt 0:00:08]} 20. e4 {[%emt 0:00:02]} Be6 {[%emt 0:00:03]} 21. Bf1 {[%emt 0:00:08]} g5 {[%emt 0:00:06]} 22. Be5+ {[%emt 0:00:08]} Ka8 {[%emt 0:00:04]} 23. Rc3 {[%emt 0:00:15]} Bg7 {[%emt 0:00:10]} 24. Bxd3 {[%emt 0:00:08]} Rhg8 {[%emt 0:00:11][%cal Of6e4] ...Nxe4! is the strong threat.} 25. Nc4 {[%emt 0:00:14]} Bxc4 {[%emt 0:00:09]} 26. Bxc4 {[%emt 0:00:01]} g4 {[%emt 0:00:10]} ({Better is} 26... Rxd2 $15 27. Rac1 (27. Bxf7 Nxe4 28. Re3 Bxe5 $17) 27... Nd7 28. Bxf7 Bxe5 29. Bxg8 Bxc3 30. Rxc3 h6) 27. d3 {[%emt 0:00:14]} (27. Bxf7 $14 Rgf8 28. Be6) 27... gxf3 $17 {[%emt 0:00:02]} 28. Rf1 {[%emt 0:00:01]} (28. Bxf7 $17 Nxe4 29. Bxg7 f2+ 30. Kg2 Rxg7 31. dxe4 Rxf7 32. Rc5) 28... Ng4 {[%emt 0:00:11]} 29. Bxg7 {[%emt 0:00:02][%cal Og7h6]} Rxg7 {[%emt 0:00:01]} (29... f2+ $17 30. Rxf2 Nxf2) 30. Rxf3 $15 {[%emt 0:00:03]} Ne5 {[%emt 0:00:01]} (30... e6 $1 $15) 31. Rf5 $11 {[%emt 0:00:07]} f6 {[%emt 0:00:00]} 32. Kf2 {[%emt 0:00:02]} Ng4+ {[%emt 0:00:02]} 33. Kg1 $1 {[%emt 0:00:01]} Ne5 {[%emt 0:00:01]} ({Black should play} 33... Ka7 $11) 34. Kf2 $15 {[%emt 0:00:02]} Ng4+ {[%emt 0:00:02]} (34... Nxc4 $15 35. dxc4 Rd2+ 36. Kg1 Rb2) 35. Kg1 $1 $11 {[%emt 0:00:00]} Kb8 {[%emt 0:00:02]} 36. Rf4 {[%emt 0:00:06]} (36. Rh5 $11) 36... Rd4 {[%emt 0:00:04]} 37. Kg2 {[%emt 0:00:02]} Ne3+ {[%emt 0:00:06]} ({Black should try} 37... Kc7 $17) 38. Kf3 $1 {[%emt 0:00:01]} Nxc4 {[%emt 0:00:01]} 39. dxc4 {[%emt 0:00:02][%mdl 4096] Endgame KRR-KRR} Rd2 {[%emt 0:00:04]} 40. Rh4 {[%emt 0:00:01]} (40. h4 $11) 40... Rb2 $17 {[%emt 0:00:02] Black is more active.} 41. e5 {[%emt 0:00:01]} Rxb4 {[%emt 0:00:02]} 42. e6 {[%emt 0:00:02]} Rb1 {[%emt 0:00:04]} (42... Ra4 $15 43. Rd4 Rxa5 44. Rd8+ Ka7) 43. Rd3 {[%emt 0:00:03] [#]} (43. Rd4 $1 $11) 43... Re1 {[%emt 0:00:01]} (43... Rf1+ $1 $17 44. Kg2 Rf5 45. Rd8+ Ka7) 44. Re4 {[%emt 0:00:03]} (44. Rhd4 $11 {remains equal.}) 44... Rxe4 {[%emt 0:00:01]} 45. Kxe4 {[%emt 0:00:01] [#] KR-KR} Rg5 $1 {[%emt 0:00:01]} 46. Rd8+ {[%emt 0:00:03]} Ka7 {[%emt 0:00:01]} 47. Rd7 {[%emt 0:00:03]} Re5+ {[%emt 0:00:01]} 48. Kd3 {[%emt 0:00:02]} (48. Kf4 $17 {was worth a try.} Rxe6 49. g4) 48... Rxe6 $19 {Strongly threatening ...Rd6+.} 49. g4 $2 {[%emt 0:00:02]} (49. Kc3) 49... Rd6+ {[%emt 0:00:04]} 50. Rxd6 {[%emt 0:00:01]} exd6 {[%emt 0:00:01]} 51. Ke4 {[%emt 0:00:03]} b5 {[%emt 0:00:01]} 52. axb6+ {[%emt 0:00:01]} Kxb6 {[%emt 0:00:02] Black mates.} 53. Kf5 a5 {[%cal Ba6a5,Ba5a4][%mdl 32]} 54. Kxf6 a4 {Weighted Error Value: White=0.51/Black=0.22 (precise)} 0-1

[Event "Susha Chess Blitz 2022"]
[Site "Shusha"]
[Date "2022.09.24"]
[Round "10"]
[White "Yilmaz, Mustafa"]
[Black "Mamedyarov, Shakhriyar"]
[Result "1/2-1/2"]
[ECO "D27"]
[WhiteElo "2633"]
[BlackElo "2757"]
[Annotator "TA"]
[PlyCount "40"]
[EventDate "2022.09.24"]
[EventType "tourn"]
[EventCountry "AZE"]
[SourceTitle "playchess.com"]
[Source "ChessBase"]
[SourceQuality "1"]
[TimeControl "180+2"]

{[%evp 15,40,28,28,27,28,29,33,27,36,20,27,17,34,14,1,6,12,17,54,-8,-14,-7,-6,-9,-8,-40,-42]} 1. d4 {[%emt 0:00:01]} d5 {[%emt 0:00:00]} 2. c4 {[%emt 0:00:01]} dxc4 {[%emt 0:00:01]} 3. Nf3 {[%emt 0:00:01]} Nf6 {[%emt 0:00:01]} 4. e3 {[%emt 0:00:01]} e6 {[%emt 0:00:00]} 5. Bxc4 c5 6. O-O {[%emt 0:00:04]} a6 {[%emt 0:00:01]} 7. dxc5 {[%emt 0:00:07]} Bxc5 {[%emt 0:00:01]} 8. Qxd8+ {[%emt 0:00:03]} Kxd8 {[%emt 0:00:01]} 9. Be2 {[%emt 0:00:02] D27: Queen's Gambit Accepted: Classical main line: 7 e4!? and 7 a4.} Ke7 {[%emt 0:00:01]} 10. Nc3 {[%emt 0:00:08]} b5 {[%emt 0:00:03] Prevents Na4.} 11. Nd2 {[%emt 0:00:12] White is slightly better.} Bb7 {[%emt 0:00:16]} 12. Nb3 {[%emt 0:00:06]} Bd6 {[%emt 0:00:12]} 13. Na5 {[%emt 0:00:06]} Ra7 {[%emt 0:00:01]} 14. Nxb7 {[%emt 0:00:03]} Rxb7 {[%emt 0:00:01]} 15. Bd2 {[%emt 0:00:03]} Nbd7 {[%emt 0:00:08]} 16. Rfd1 {[%emt 0:00:09]} Rc8 {[%emt 0:00:05][%cal Bh8c8,Bc8c7,Bc7c1][%mdl 32]} 17. Rac1 {[%emt 0:00:02]} (17. a4 $14) 17... Rbc7 $11 {[%emt 0:00:04]} 18. Nb1 {[%emt 0:00:31] [#]} Nd5 $146 {[%emt 0:00:10]} ({Predecessor:} 18... g5 19. Rxc7 Rxc7 20. Rc1 Rxc1+ 21. Bxc1 g4 22. a4 bxa4 23. Bxa6 Ne4 24. Bb5 Ndc5 25. Nd2 Nf6 26. b4 axb3 {½-½ (26) Menezes,C (2399)-Studer,N (2514) Karlsruhe 2019}) 19. Rxc7 {[%emt 0:00:06]} Rxc7 {[%emt 0:00:02]} 20. Rc1 {[%emt 0:00:05] Against Rc2} (20. Nc3 $5 {[%cal Rc3d5]}) 20... Rxc1+ {[%emt 0:00:01] Weighted Error Value: White=0.11 (very precise) /Black=0.04 (flawless)} 1/2-1/2

[Event "Susha Chess Blitz 2022"]
[Site "Shusha"]
[Date "2022.09.24"]
[Round "11"]
[White "Maghsoodloo, Parham"]
[Black "Mamedov, Rauf"]
[Result "0-1"]
[ECO "E67"]
[WhiteElo "2721"]
[BlackElo "2646"]
[Annotator "TA"]
[PlyCount "60"]
[EventDate "2022.09.24"]
[EventType "tourn"]
[EventCountry "AZE"]
[SourceTitle "playchess.com"]
[Source "ChessBase"]
[SourceQuality "1"]
[TimeControl "180+2"]

{[%evp 18,60,24,-47,-29,-22,-23,-35,-29,-57,-61,-56,-54,-62,-56,-57,-53,-108,-56,-140,-129,-133,-145,-153,-170,-193,-202,-202,-175,-204,-208,-172,-163,-185,-179,-182,-174,-260,-180,-286,-272,-297,-266,-29991,-29992]} 1. d4 d6 2. Nf3 {[%emt 0:00:06]} Nf6 {[%emt 0:00:01]} 3. c4 {[%emt 0:00:02]} g6 {[%emt 0:00:02]} 4. Nc3 {[%emt 0:00:02]} Bg7 {[%emt 0:00:00]} 5. g3 {[%emt 0:00:04]} O-O {[%emt 0:00:02]} 6. Bg2 {[%emt 0:00:01]} Nbd7 {[%emt 0:00:01]} 7. O-O {[%emt 0:00:12]} e5 {[%emt 0:00:01]} 8. Qc2 {[%emt 0:00:08]} exd4 {[%emt 0:00:02]} 9. Nxd4 {[%emt 0:00:01]} Nb6 {[%emt 0:00:04]} 10. b3 {[%emt 0:00:13] outshines the older 10.Rd1.} (10. Rd1 $11) 10... c5 $1 $15 {[%emt 0:00:01] E67: King's Indian: Fianchetto: 6...Nbd7.} 11. Nf3 {[%emt 0:00:41]} Bf5 {[%emt 0:00:06]} 12. Qd1 {[%emt 0:00:09]} d5 {[%emt 0:00:03] [#] And now ...Ne4 would win. Black is slightly better.} 13. Ba3 $146 {[%emt 0:00:04]} ({Predecessor:} 13. Bg5 h6 14. Bxf6 Bxf6 15. Rc1 d4 16. Nd5 Nxd5 17. cxd5 Rc8 18. Ne1 b5 19. Nd3 {½-½ (59) Benderev,Y-Mechkarov,S Sofia 1948}) 13... Rc8 {[%emt 0:00:06]} 14. Nh4 {[%emt 0:00:06]} Be6 {[%emt 0:00:03]} 15. cxd5 {[%emt 0:00:19]} Nfxd5 {[%emt 0:00:01]} 16. Nxd5 {[%emt 0:00:01]} Nxd5 {[%emt 0:00:02]} 17. Rc1 {[%emt 0:00:01]} (17. Bxd5 $15 Bxd5 18. Rc1) 17... b6 {[%emt 0:00:45]} (17... Nc3 $17 18. Qe1 Nxa2 19. Rxc5 Re8 20. Rxc8 Qxc8) 18. Rc2 {[%emt 0:00:55]} (18. Qc2 $15) 18... Nc3 $17 {[%emt 0:01:24]} 19. Qc1 {[%emt 0:00:01] [#]} b5 $1 {[%emt 0:00:00] Black is much more active.} 20. Rxc3 {[%emt 0:00:27]} Bxc3 {[%emt 0:00:01]} 21. Qxc3 {[%emt 0:00:02]} b4 {[%emt 0:00:01]} 22. Bxb4 {[%emt 0:00:02]} cxb4 {[%emt 0:00:00]} 23. Qxb4 {[%emt 0:00:01]} Rc2 {[%emt 0:00:02][%csl LRa2,LRe2]} 24. Qa4 {[%emt 0:00:03]} Qd7 {[%emt 0:00:09][%mdl 1024] Black has strong compensation.} 25. Qa6 {[%emt 0:00:05]} Rfc8 {[%emt 0:00:07]} 26. Nf3 {[%emt 0:00:02]} Rc1 {[%emt 0:00:05] Hoping for ...Rxf1+.} 27. Ne1 {[%emt 0:00:03]} (27. Ng5 {was called for.}) 27... Bf5 {[%emt 0:00:13]} 28. h3 {[%emt 0:00:03]} (28. Qa5 {keeps fighting.}) 28... Bxh3 $19 {[%emt 0:00:08]} 29. Nd3 {[%emt 0:00:02]} Rxf1+ {[%emt 0:00:03]} 30. Kxf1 $2 {[%emt 0:00:01] [#]} (30. Bxf1 $19 Bxf1 31. Kxf1) 30... Rc1+ $3 {[%emt 0:00:06][%mdl 512] Weighted Error Value: White=0.52/Black=0.10 (very precise)} 0-1